fUSD/lending_fUSD_20260219
["ID","MTS","AMOUNT","RATE_DAILY","PERIOD"]
[405992098,1771510247346,-166.66,0.00011288,2]
[405992099,1771510247355,-505.38,0.00011337,2]
[405992100,1771510247366,-166.66,0.00011397,2]
[405992101,1771510247375,-505.38,0.0001143,2]
[405992102,1771510247384,-166.66,0.00011439,2]
[405992103,1771510247394,-1800.0,0.000115,2]
[405992104,1771510247403,-166.66,0.00011507,2]
[405992105,1771510247412,-505.38,0.00011523,2]
[405992106,1771510247422,-1000.0,0.00011588,2]
[405992107,1771510247431,-505.38,0.00011616,2]
[405992108,1771510247440,-505.38,0.00011709,2]
[405992109,1771510247450,-505.38,0.00011802,2]
[405992110,1771510247460,-160.84999992,0.000119,2]
[405992111,1771510247470,-5619.22077846,0.000119,2]
[405992112,1771510247481,-1964.0,0.00012,3]
[405992113,1771510247491,-192.18787401,0.00012162,2]
[405992114,1771510247501,-1209.0,0.00012325,2]
[405992115,1771510247510,-2453.0,0.00012325,2]
[405992116,1771510247520,-413.0,0.00012325,2]
[405992117,1771510247532,-5974.0,0.00012325,2]
[405992118,1771510247541,-320.0,0.00012347,2]
[405992119,1771510247551,-1000.0,0.00012876,2]
[405992120,1771510247560,-621.78829552,0.00012945,2]
[405992121,1771510247570,-775.47832561,0.00012945,2]
[405992122,1771510247580,-3240.0,0.00013425,2]
[405992123,1771510247589,-1338.0,0.00013448,2]
[405992124,1771510247599,-617.0,0.00013448,2]
[405992125,1771510247609,-1275.0,0.00013448,2]
[405992126,1771510247620,-150.0,0.00013448,2]
[405992127,1771510247630,-320.0,0.0001347,2]
[405992128,1771510247640,-173.66088786,0.00013494,2]
[405992129,1771510247651,-5619.22077846,0.00013567,2]
[405992130,1771510247662,-500.0,0.00013698,2]
[405992131,1771510247672,-500.0,0.00013698,2]
[405992132,1771510247683,-500.0,0.00013698,2]
[405992133,1771510247692,-500.0,0.00013698,2]
[405992135,1771510247701,-272.47,0.00013698,2]
[405992136,1771510247711,-500.0,0.00013698,2]
[405992137,1771510247720,-200.0,0.00013699,2]
[405992138,1771510247730,-367.0,0.00013916,2]
[405992139,1771510247739,-367.0,0.00013985,2]
[405992140,1771510247748,-303.0,0.000141,2]
[405992141,1771510247758,-989.0,0.000141,2]
[405992142,1771510247769,-367.0,0.00014129,2]
[405992143,1771510247778,-1000.0,0.00014164,2]
[405992144,1771510247787,-350.0,0.00014271,2]
[405992145,1771510247798,-350.0,0.00014289,2]
[405992146,1771510247808,-367.0,0.00014313,2]
[405992147,1771510247820,-367.0,0.00014381,2]
[405992148,1771510247830,-160.84999992,0.000144,2]
[405992149,1771510247839,-367.0,0.00014403,2]
[405992150,1771510247850,-4894.16,0.00014504,2]
[405992151,1771510247859,-999.99,0.00014504,2]
[405992152,1771510247870,-367.0,0.00014541,2]
[405992153,1771510247880,-367.0,0.00014544,2]
[405992154,1771510247889,-150.0,0.00014733,2]
[405992155,1771510247900,-350.0,0.00014753,2]
[405992156,1771510247910,-350.0,0.00014806,2]
[405992157,1771510247920,-2500.0,0.000149,5]
[405992158,1771510247929,-250.0,0.00015,2]
[405992159,1771510247938,-172.26,0.00015023,2]
[405992160,1771510247949,-211.98,0.00015089,2]
[405992161,1771510247959,-151.0,0.00015117,2]
[405992162,1771510247968,-500.0,0.00015119,2]
[405992163,1771510247978,-157932.75815671,0.0001512,2]
[405992164,1771510247996,-4282.52291501,0.0001512,2]
[405992165,1771510248008,-482.42209148,0.0001512,2]
[405992166,1771510248020,-1708.82134858,0.0001512,2]
[405992167,1771510248032,-3372.08652785,0.0001512,2]
[405992168,1771510561696,613.03,0.0002,120]
[405992169,1771510629238,150.0,0.0001397,120]
[405992170,1771510679487,4801.93357737,6.5e-05,2]
[405992171,1771510679545,198.07642263,6.5e-05,2]
[405992172,1771510679566,5000.01,6.5e-05,2]
[405992173,1771510679589,5000.01,6.5e-05,2]
[405992174,1771510679611,5000.01,6.5e-05,2]
[405992175,1771510679633,5000.01,6.5e-05,2]
[405992176,1771510679664,3211.55146423,6.5e-05,2]
[405992177,1771510679699,1788.45853577,6.5e-05,2]
[405992178,1771510679722,5000.01,6.5e-05,2]
[405992179,1771510679745,2665.398619,6.5e-05,2]
[405992180,1771510680037,2334.611381,6.5e-05,2]
[405992181,1771510680059,5000.01,6.5e-05,2]
[405992182,1771510680082,5000.01,6.5e-05,2]
[405992183,1771510680107,220.52482532,6.5e-05,2]
[405992184,1771510680315,9779.48517468,6.5e-05,2]
[405992185,1771510680341,10000.01,6.5e-05,2]
[405992186,1771510680365,528.8836606,6.5e-05,2]
[405992187,1771510896828,1524.557,6.437e-05,2]
[405992188,1771510896968,174.106,6.437e-05,2]
[405992189,1771510903392,1736.99158491,6.4e-05,2]
[405992190,1771510903451,3323.98316986,6.4e-05,2]
[405992191,1771510903498,4593.57643775,6.4e-05,2]
[405992192,1771510903544,345.45880748,6.4e-05,2]
[405992193,1771510903565,8374.29575105,6.4e-05,2]
[405992194,1771511005065,332.97059985,6.4e-05,2]
[405992195,1771511005119,515.94119974,6.4e-05,2]
[405992196,1771511005173,662.31767959,6.4e-05,2]
[405992197,1771511005231,1138.04123922,6.4e-05,2]
[405992247,1771511431502,-1164.66537066,6.566e-05,2]
[405992248,1771511431513,-35.33462934,6.566e-05,2]
[405992249,1771511431523,-250.0,6.567e-05,2]
[405992250,1771511431535,-158.97112318,6.567e-05,2]
[405992251,1771511431544,-980.0,6.567e-05,2]
[405992252,1771511431554,-94.4862056,6.749e-05,2]
[405992253,1771511431565,-155.5137944,6.749e-05,2]
[405992254,1771511431575,-795.18302236,7e-05,2]
[405992255,1771511431591,-204.81697764,7e-05,2]
[405992256,1771511431600,-250.0,7.046e-05,2]
[405992257,1771511431609,-250.0,7.223e-05,2]
[405992258,1771511431621,-1471.0,7.223e-05,2]
[405992259,1771511431630,-297.14970002,7.829e-05,2]
[405992260,1771511431639,-1312.0,7.846e-05,2]
[405992261,1771511431650,-491.0,7.864e-05,2]
[405992262,1771511431659,-294.83122939,7.879e-05,2]
[405992263,1771511431670,-645.16877061,7.879e-05,2]
[405992264,1771511431679,-87.46766023,8.067e-05,2]
[405992265,1771511431695,-159.53233977,8.067e-05,2]
[405992267,1771511431704,-292.0,8.083e-05,2]
[405992268,1771511431713,-127.41464457,8.099e-05,2]
[405992269,1771511431724,-40.58535543,8.099e-05,2]
[405992270,1771511431733,-157.0,8.327e-05,2]
[405992271,1771511431742,-655.0,8.343e-05,2]
[405992272,1771511431751,-1396.0,8.36e-05,2]
[405992273,1771511431761,-1149.0,8.654e-05,2]
[405992274,1771511431770,-391.0,8.672e-05,2]
[405992275,1771511431779,-150.0,0.00010159,2]
[405992276,1771511431788,-1275.0,0.0001016,2]
[405992277,1771511431797,-1209.0,0.0001016,2]
[405992278,1771511431806,-617.0,0.0001016,2]
[405992279,1771511431815,-1164.0,0.0001016,2]
[405992280,1771511431824,-153.54,0.00010312,2]
[405992281,1771511431833,-153.54,0.00010433,2]
[405992282,1771511431842,-153.54,0.00010555,2]
[405992283,1771511431851,-153.54,0.00010676,2]
[405992284,1771511431859,-153.54,0.00010797,2]
[405992285,1771511431869,-150.0,0.00010825,2]
[405992286,1771511431878,-150.0,0.00010825,2]
[405992287,1771511431887,-164.73246348,0.000109,2]
[405992288,1771511431898,-153.54,0.00010918,2]
[405992289,1771511431907,-200.0,0.00010932,2]
[405992290,1771511431915,-153.54,0.0001104,2]
[405992291,1771511431924,-450.0,0.00011135,7]
[405992292,1771511431933,-153.54,0.00011161,2]
[405992293,1771511431942,-164.0,0.00011165,2]
[405992294,1771511431951,-4423.54,0.00011233,2]
[405992295,1771511431960,-153.54,0.00011282,2]
[405992296,1771511431969,-153.54,0.00011404,2]
[405992297,1771511431978,-153.54,0.00011525,2]
[405992298,1771511431987,-153.54,0.00011646,2]
[405992299,1771511431996,-1000.0,0.00011724,2]
[405992300,1771511432005,-153.54,0.00011768,2]
[405992301,1771511432014,-1500.0,0.00011863,2]
[405992302,1771511432023,-153.54,0.00011889,2]
[405992303,1771511432032,-153.54,0.0001201,2]
[405992304,1771511432041,-251.84,0.00012011,2]
[405992305,1771511432050,-153.54,0.00012132,2]
[405992306,1771511432059,-164.73246343,0.00012813,2]
[405992307,1771511432068,-1275.0,0.0001316,2]
[405992308,1771511432077,-1209.0,0.0001316,2]
[405992309,1771511432086,-617.0,0.0001316,2]
[405992310,1771511432095,-1164.0,0.0001316,2]
[405992311,1771511432104,-1000.0,0.0001319,2]
[405992312,1771511432113,-251.84,0.00013513,2]
[405992313,1771511432122,-173.66088786,0.00013575,2]
[405992314,1771511432132,-150.0,0.0001397,2]
[405992315,1771511432141,-249.0,0.0001424,2]
[405992316,1771511432153,-249.0,0.00014319,2]
[405992317,1771511432163,-249.0,0.00014389,2]
[405992318,1771511432173,-4204.38800158,0.000144,2]
[405992319,1771511432182,-349.69,0.00014504,2]
[405992320,1771511432191,-9408.29,0.00014504,2]
[405992321,1771511432200,-249.0,0.00014543,2]
[405992322,1771511432209,-249.0,0.00014555,2]
[405992323,1771511432218,-249.0,0.0001456,2]
[405992324,1771511432227,-500.0,0.00014567,2]
[405992325,1771511432237,-249.0,0.00014572,2]
[405992326,1771511432246,-249.0,0.00014577,2]
[405992327,1771511432255,-249.0,0.00014618,2]
[405992328,1771511432265,-249.0,0.00014621,2]
[405992329,1771511432274,-1000.0,0.00014656,2]
[405992330,1771511432283,-1278.1228,0.00014718,2]
[405992331,1771511432292,-350.0,0.00014775,2]
[405992332,1771511432301,-433.15995582,0.00014818,2]
[405992333,1771511432311,-249.0,0.00014832,2]
[405992334,1771511432320,-1895.8721208,0.00014843,2]
[405992335,1771511432329,-6049.1195876,0.00014843,2]
[405992336,1771511432338,-151.0,0.00014899,5]
[405992337,1771511432347,-151.0,0.00014899,5]
[405992338,1771511432356,-151.0,0.00014899,5]
[405992339,1771511432365,-151.0,0.00014899,5]
[405992340,1771511432375,-500.0,0.00014899,5]
[405992341,1771511432384,-500.0,0.00014899,5]
[405992342,1771511432393,-151.0,0.00014899,5]
[405992343,1771511432404,-500.0,0.00014899,5]
[405992344,1771511432413,-151.0,0.00014899,5]
[405992345,1771511432422,-151.0,0.00014899,5]
[405992346,1771511432431,-500.0,0.00014899,5]
[405992347,1771511432439,-500.0,0.00014899,5]
[405992348,1771511432449,-151.0,0.00014899,5]
[405992349,1771511432458,-500.0,0.00014899,5]
[405992350,1771511432467,-151.0,0.00014899,5]
[405992351,1771511432476,-500.0,0.00014899,5]
[405992352,1771511432485,-578.20924308,0.00014899,5]
[405992353,1771511432495,-151.0,0.00014899,5]
[405992354,1771511432506,-500.0,0.00014899,5]
[405992355,1771511432516,-584.55181104,0.00014899,5]
[405992356,1771511432527,-151.0,0.00014899,5]
[405992357,1771511432537,-500.0,0.00014899,5]
[405992358,1771511432546,-500.0,0.00014899,5]
[405992359,1771511432556,-500.0,0.00014899,5]
[405992360,1771511432567,-500.0,0.00014899,5]
[405992361,1771511432576,-500.0,0.00014899,5]
[405992362,1771511432585,-500.0,0.00014899,5]
[405992363,1771511432595,-500.0,0.00014899,5]
[405992364,1771511432606,-500.0,0.00014899,5]
[405992365,1771511432615,-500.0,0.00014899,5]
[405992366,1771511432625,-500.0,0.00014899,5]
[405992367,1771511432634,-500.0,0.00014899,5]
[405992368,1771511432643,-500.0,0.00014899,5]
[405992369,1771511432655,-500.0,0.00014899,5]
[405992370,1771511432665,-500.0,0.00014899,5]
[405992371,1771511432674,-721.12765535,0.00014899,5]
[405992372,1771511432683,-747.8093786,0.00014899,5]
[405992373,1771511432692,-775.47832561,0.00014899,5]
[405992374,1771511432702,-804.17102365,0.00014899,5]
[405992375,1771511432711,-833.92535153,0.00014899,5]
[405992376,1771511432721,-693.3919763,0.00014899,5]
[405992377,1771511432730,-864.78058953,0.00014899,5]
[405992378,1771511432739,-719.04747942,0.00014899,5]
[405992379,1771511432748,-896.77747135,0.00014899,5]
[405992380,1771511432757,-745.65223616,0.00014899,5]
[405992381,1771511432766,-263.61474936,0.00014899,5]
[405992382,1771511432775,-773.2413689,0.00014899,5]
[405992383,1771511432784,-801.85129955,0.00014899,5]
[405992384,1771511432793,-831.51979763,0.00014899,5]
[405992385,1771511432802,-862.28603014,0.00014899,5]
[405992386,1771511432811,-894.19061326,0.00014899,5]
[405992387,1771511432820,-927.27566595,0.00014899,5]
[405992388,1771511432829,-961.58486559,0.00014899,5]
[405992389,1771511432838,-997.16350561,0.00014899,5]
[405992390,1771511432847,-523.6140179,0.00015,2]
[405992391,1771511432856,-249.0,0.00015002,2]
[405992392,1771511432866,-249.0,0.00015014,2]
[405992393,1771511432875,-251.84,0.00015014,2]
[405992394,1771511432884,-249.0,0.0001505,2]
[405992395,1771511432893,-350.0,0.00015098,2]
[405992396,1771511432903,-40297.85208668,0.0001512,2]
[405992397,1771511432912,-1296.79774788,0.0001512,2]
[405992398,1771511432921,-200.0,0.0001512,2]
[405992399,1771511432930,-1000.0,0.0001512,2]
[405992400,1771511432940,-1000.0,0.0001512,2]
[405992401,1771511432950,-1000.0,0.0001512,2]
[405992402,1771511432960,-1000.0,0.0001512,2]
[405992403,1771511432970,-249.0,0.00015128,2]
[405992404,1771511432979,-249.0,0.0001518,2]
[405992405,1771511432990,-350.0,0.00015187,2]
[405992406,1771511433000,-350.0,0.00015191,2]
[405992407,1771511433009,-200.0,0.00015271,2]
[405992408,1771511433018,-249.0,0.00015299,2]
[405992409,1771511433027,-249.0,0.00015397,2]
[405992410,1771511433037,-200.0,0.00015424,2]
[405992411,1771511433047,-249.0,0.00015454,2]
[405992412,1771511433056,-249.0,0.00015485,2]
[405992413,1771511433066,-249.0,0.0001549,2]
[405992414,1771511433076,-249.0,0.0001555,2]
[405992415,1771511433086,-249.0,0.00015557,2]
[405992416,1771511433095,-200.0,0.00015578,2]
[405992417,1771511433105,-249.0,0.00015579,2]
[405992418,1771511433114,-350.0,0.00015595,2]
[405992419,1771511433124,-249.0,0.00015625,2]
[405992420,1771511433133,-150.0,0.00015733,2]
[405992421,1771511433142,-200.0,0.00015734,2]
[405992422,1771511433156,-350.0,0.00015883,2]
[405992423,1771511433166,-2100.0,0.000159,5]
[405992424,1771511433175,-151.62,0.000159,2]
[405992425,1771511433185,-150.75105579,0.000159,2]
[405992426,1771511433194,-350.0,0.00015922,2]
[405992427,1771511433203,-368.36844867,0.0001606,2]
[405992428,1771511433213,-350.0,0.00016084,2]
[405992429,1771511433223,-1000.0,0.00016121,2]
[405992430,1771511433232,-1275.0,0.0001616,2]
[405992431,1771511433241,-1209.0,0.0001616,2]
[405992432,1771511433250,-617.0,0.0001616,2]
[405992433,1771511433260,-1164.0,0.0001616,2]
[405992434,1771511433269,-151.0,0.00016197,2]
[405992435,1771511433279,-194187.2118155,0.000162,5]
[405992436,1771511433289,-2809.61038923,0.000162,2]
[405992437,1771511433299,-309.0,0.000163,2]
[405992438,1771511433308,-431.0,0.000163,2]
[405992439,1771511433317,-303.0,0.000163,2]
[405992440,1771511433326,-989.0,0.000163,2]
[405992441,1771511433335,-350.0,0.00016368,2]
[405992442,1771511433344,-350.0,0.00016415,2]
[405992443,1771511433353,-251.84,0.00016516,2]
[405992444,1771511433363,-350.0,0.00016576,2]
[405992445,1771511433371,-1895.8721208,0.00016628,2]
[405992446,1771511433380,-167.28,0.00016712,2]
[405992447,1771511433389,-150.0,0.00016733,2]
[405992448,1771511433399,-500.0,0.00017,2]
[405992449,1771511433409,-500.0,0.00017,2]
[405992450,1771511433419,-300.0,0.00017,2]
[405992451,1771511433428,-507.0,0.00017,2]
[405992452,1771511433437,-6049.1195876,0.00017135,2]
[405992453,1771511433447,-1000.0,0.00017587,2]
[405992454,1771511433456,-150.0,0.00017733,2]
[405992455,1771511433466,-3200.0,0.000178,6]
[405992456,1771511433475,-2809.61038923,0.00017833,2]
[405992457,1771511433484,-1105.913,0.00017899,2]
[405992458,1771511433494,-4300.0,0.000179,6]
[405992459,1771511433504,-17139.84698592,0.000179,2]
[405992460,1771511433513,-2775.47003025,0.000179,2]
[405992461,1771511433523,-1870.69177813,0.000179,2]
[405992462,1771511433535,-7936.59388716,0.000179,2]
[405992463,1771511433544,-2632.00277742,0.000179,2]
[405992464,1771511433553,-2027.0,0.00017973,2]
[405992465,1771511433563,-100423.05310416,0.00017999,2]
[405992466,1771511433572,-500.0,0.00017999,2]
[405992467,1771511433582,-304.62895111,0.00017999,2]
[405992468,1771511433591,-1062.34374872,0.00017999,5]
[405992469,1771511433601,-1062.34374872,0.00017999,5]
[405992470,1771511433612,-1062.34374872,0.00017999,5]
[405992471,1771511433622,-1062.34374872,0.00017999,5]
[405992472,1771511433632,-300.0,0.00017999,2]
[405992473,1771511433641,-150.0,0.00017999,2]
[405992474,1771511433650,-156800.40060712,0.00018,2]
[405992475,1771511433660,-174410.89826816,0.00018,2]
[405992476,1771511433669,-132641.54466637,0.00018,2]
[405992477,1771511433682,-58184.86957246,0.00018,2]
[405992478,1771511433694,-104855.5040669,0.00018,2]
[405992479,1771511433705,-175811.29730493,0.00018,2]
[405992480,1771511433716,-1254.41808677,0.00018,2]
[405992481,1771511433728,-491.0360497,0.00018,2]
[405992482,1771511433740,-342.48315084,0.00018,2]
[405992483,1771511433753,-2000.00000001,0.00018,2]
[405992484,1771511433763,-1400.0,0.00018,2]
[405992488,1771511437697,-151.0,0.00017996,2]
[405992489,1771511437709,-58137.51853149,0.00018,2]
[405992490,1771511437718,-150.0,0.00018,2]
[405992491,1771511437729,-3157.58050803,0.00018,2]
[405992492,1771511437740,-150.0,0.00018,2]
[405992493,1771511437750,-141722.20550827,0.00018,2]
[405992494,1771511437763,-3445.85,0.00018,2]
[405992495,1771511437776,-690.45,0.00018,2]
[405992503,1771511439930,-1022.64,0.00018,2]
[405992504,1771511440046,-4614.32289915,0.00018,2]
[405992505,1771511440106,-1319.57,0.00018,2]
[405992522,1771511445389,-958.1,0.0001016,2]
[405992523,1771511445408,-304.5,0.0001016,2]
[405992524,1771511445419,-75.4,0.0001016,2]
[405992525,1771511445428,-281.1,0.0001316,2]
[405992526,1771511445439,-1056.9,0.0001316,2]
[405992527,1771511445448,-320.98,0.0001616,2]
[405992528,1771511445805,-661.52,0.0001616,2]
[405992529,1771511445816,-355.5,0.0001616,2]
[405992530,1771511445827,-1628.16988304,0.00018,2]
[405992536,1771511446597,-510011.36740868,0.00018,2]
[405992537,1771511446609,-5430.32161134,0.00018,2]
[405992599,1771512631647,-300.0,7.428e-05,2]
[405992600,1771512631656,-871.15387376,7.429e-05,2]
[405992601,1771512631669,-437.436765,7.429e-05,2]
[405992602,1771512631705,-755.64546982,7.429e-05,2]
[405992603,1771512631718,-561.36,7.429e-05,2]
[405992604,1771512631730,-700.05,7.429e-05,2]
[405992605,1771512631763,-1068.98181167,7.429e-05,2]
[405992606,1771512631777,-461.42885743,7.429e-05,2]
[405992613,1771512637700,-889.07033707,7.429e-05,2]
[405992614,1771512637713,-2611.28340531,7.429e-05,2]
[405992615,1771512637724,-347.32,7.429e-05,2]
[405992616,1771512637735,-15420.42564278,7.429e-05,2]
[405992617,1771512637872,-398.88911022,7.429e-05,2]
[405992618,1771512637932,-607.46922694,7.429e-05,2]
[405992619,1771512637942,-228.55048938,7.629e-05,2]
[405992621,1771512639809,-313.59441444,7.629e-05,2]
[405992622,1771512639820,-289.333,7.629e-05,2]
[405992623,1771512639831,-388.16809618,7.629e-05,2]
[405992624,1771512639840,-174.107,7.629e-05,2]
[405992625,1771512639849,-304.12596972,8.171e-05,2]
[405992626,1771512639859,-420.0,8.171e-05,2]
[405992627,1771512639868,-500.0,8.604e-05,2]
[405992628,1771512639878,-501.29401643,8.604e-05,2]
[405992629,1771512639887,-587.0,8.988e-05,2]
[405992630,1771512639896,-318.12778806,9.815e-05,2]
[405992631,1771512639906,-823.0,9.887e-05,2]
[405992632,1771512639915,-1000.0,0.0001,2]
[405992633,1771512639924,-170.83,0.00010438,2]
[405992634,1771512639934,-1152.0,0.00010875,2]
[405992635,1771512639943,-283.34712961,0.00011172,2]
[405992636,1771512639954,-755.65287039,0.00011172,2]
[405992637,1771512639964,-215.26412413,0.00011172,2]
[405992638,1771512639976,-1819.1209591,0.00011172,2]
[405992639,1771512640013,-1457.61491677,0.00011172,2]
[405992640,1771512640032,-617.0,0.00011172,2]
[405992641,1771512640043,-1275.0,0.00011172,2]
[405992642,1771512640052,-1209.0,0.00011172,2]
[405992643,1771512640061,-919.0,0.00011172,2]
[405992644,1771512640070,-5974.0,0.00011172,2]
[405992645,1771512640081,-2453.0,0.00011172,2]
[405992646,1771512640091,-166.66,0.00011744,2]
[405992647,1771512640100,-1023.0,0.00011963,2]
[405992648,1771512640110,-166.66,0.00011991,2]
[405992649,1771512640119,-166.66,0.00012238,2]
[405992650,1771512640128,-166.66,0.00012486,2]
[405992651,1771512640138,-166.66,0.00012733,2]
[405992652,1771512640148,-700.0,0.000129,4]
[405992653,1771512640160,-166.66,0.0001298,2]
[405992654,1771512640171,-750.19626808,0.00012988,2]
[405992655,1771512640181,-2247.68831142,0.00012988,2]
[405992656,1771512640192,-164.73246343,0.00012988,2]
[405992657,1771512640202,-168.93,0.00013059,2]
[405992658,1771512640215,-500.0,0.00013059,2]
[405992659,1771512640225,-437.69360142,0.00013059,2]
[405992660,1771512640235,-500.0,0.00013059,2]
[405992661,1771512640246,-500.0,0.00013059,2]
[405992662,1771512640256,-370.77755473,0.00013059,2]
[405992663,1771512640267,-500.0,0.00013059,2]
[405992664,1771512640277,-500.0,0.00013059,2]
[405992665,1771512640286,-500.0,0.00013059,2]
[405992666,1771512640296,-500.0,0.00013059,2]
[405992667,1771512640306,-551.96325856,0.00013059,2]
[405992668,1771512640317,-168.93,0.00013333,2]
[405992669,1771512640327,-3240.0,0.00013425,2]
[405992670,1771512640338,-168.93,0.00013607,2]
[405992671,1771512640348,-200.0,0.00013699,2]
[405992672,1771512640357,-166.66,0.00014021,2]
[405992673,1771512640367,-425.519,0.00014172,2]
[405992674,1771512640378,-3492.0,0.00014172,2]
[405992675,1771512640388,-617.0,0.00014172,2]
[405992676,1771512640398,-1275.0,0.00014172,2]
[405992677,1771512640412,-1209.0,0.00014172,2]
[405992678,1771512640422,-919.0,0.00014172,2]
[405992679,1771512640431,-5974.0,0.00014172,2]
[405992680,1771512640441,-2453.0,0.00014172,2]
[405992681,1771512640451,-166.66,0.00014484,2]
[405992682,1771512640461,-4242.75,0.00014504,2]
[405992683,1771512640471,-2773.27,0.00014504,2]
[405992684,1771512640480,-150.99,0.00014504,2]
[405992685,1771512640490,-166.66,0.00014947,2]
[405992686,1771512640501,-250.0,0.00015,2]
[405992687,1771512640512,-1475.1273,0.0001502,2]
[405992688,1771512640522,-166.66,0.0001541,2]
[405992689,1771512640532,-750.19626808,0.00015423,2]
[405992690,1771512640542,-2247.68831138,0.00015423,2]
[405992691,1771512640552,-166.66,0.00015873,2]
[405992692,1771512640561,-32855.2885,0.00016021,2]
[405992693,1771512640570,-1000.0,0.00016021,2]
[405992694,1771512640580,-687.0,0.000162,2]
[405992695,1771512640589,-309.0,0.000162,2]
[405992696,1771512640599,-303.0,0.000162,2]
[405992697,1771512640610,-166.66,0.00016336,2]
[405992698,1771512640619,-300.0,0.00017,2]
[405992699,1771512640629,-500.0,0.00017,7]
[405992700,1771512640639,-399.61,0.00017,7]
[405992701,1771512640648,-507.0,0.00017,2]
[405992702,1771512640658,-3492.0,0.00017172,2]
[405992703,1771512640674,-617.0,0.00017172,2]
[405992704,1771512640684,-1275.0,0.00017172,2]
[405992705,1771512640694,-1209.0,0.00017172,2]
[405992706,1771512640703,-919.0,0.00017172,2]
[405992707,1771512640713,-5974.0,0.00017172,2]
[405992708,1771512640723,-315.7443846,0.000178,2]
[405992709,1771512640734,-1400.0,0.000178,6]
[405992710,1771512640743,-750.19626808,0.00017857,2]
[405992711,1771512640753,-2247.68831138,0.00017857,2]
[405992712,1771512640764,-300.0,0.00017899,2]
[405992713,1771512640774,-1104.09377739,0.000179,2]
[405992714,1771512640784,-92097.71150468,0.000179,3]
[405992715,1771512640806,-994.57093913,0.00017172,2]
[405992716,1771512640817,-466.21656778,0.00017172,2]
[405992717,1771512640830,-992.21249309,0.00017172,2]
[405992718,1771512640841,-440016.20132684,0.000179,3]
[405992719,1771512640853,-153.958443,0.000179,2]
[405992720,1771512640863,-151.0,0.000179,2]
[405992721,1771512640874,-151.0,0.000179,2]
[405992722,1771512640885,-151.0,0.000179,2]
[405992723,1771512640896,-244.754155,0.000179,2]
[405992724,1771512640905,-244.754155,0.000179,2]
[405992725,1771512640915,-244.754155,0.000179,2]
[405992726,1771512640925,-244.754155,0.000179,2]
[405992727,1771512640935,-2200.0,0.000179,6]
[405992728,1771512640944,-6613.8282393,0.000179,2]
[405992729,1771512640954,-487.0,0.000179,2]
[405992730,1771512640964,-487.0,0.000179,2]
[405992731,1771512640975,-487.0,0.000179,2]
[405992732,1771512640984,-487.0,0.000179,2]
[405992733,1771512640998,-487.0,0.000179,2]
[405992734,1771512641011,-487.0,0.000179,2]
[405992735,1771512641021,-487.0,0.000179,2]
[405992736,1771512641032,-487.0,0.000179,2]
[405992737,1771512641041,-487.0,0.000179,2]
[405992738,1771512641052,-487.0,0.000179,2]
[405992739,1771512641063,-487.0,0.000179,2]
[405992740,1771512641074,-487.0,0.000179,2]
[405992741,1771512641084,-487.0,0.000179,2]
[405992742,1771512641093,-487.0,0.000179,2]
[405992743,1771512641103,-487.0,0.000179,2]
[405992744,1771512641112,-487.0,0.000179,2]
[405992745,1771512641121,-487.0,0.000179,2]
[405992746,1771512641132,-487.0,0.000179,2]
[405992747,1771512641142,-487.0,0.000179,2]